Cogmind - Beta 17.1 @@@ ROGUE MODE // 2026.09.16 @ 21:25:23 Player: jostin Result: Destroyed by D-53 Grenadier with Mini Grenade Launcher Performance ------------- Evolutions (0) 0 Regions Visited (2) 400 Robots Destroyed (18) 90 Value Destroyed (462) 462 Prototype IDs (0) 0 Alien Tech Used (0) 0 Bonus (0) 0 TOTAL SCORE: 952 Bonus ------- None Cogmind --------- Core Integrity 0/250 Matter 265/300 Energy 95/100 System Corruption 0% Temperature Cool (0) Movement Core (400) Ox7 Location -10/Mines Parts ------- > --- POWER (1) -------- (None) > --- PROPULSION (2) --- (None) > --- UTILITY (2) ------ Large Storage Unit > --- WEAPON (2) ------- Grenade Launcher > --- INVENTORY (15) --- Ion Engine Wheel Improved Heat Sink High-capacity Storage Unit Mining Laser Peak State ------------ > --- POWER ------------ Light Nuclear Core > --- PROPULSION ------- Light Treads Light Treads > --- UTILITY ---------- Large Storage Unit Seismic Detector > --- WEAPON ----------- Small Laser Small Laser > --- INVENTORY -------- Ion Engine Ion Engine Light Treads Wheel Improved Heat Sink High-capacity Storage Unit Grenade Launcher Mining Laser [Rating: 10] Favorites ----------- Power Ion Engine Engine Ion Engine Power Core Light Nuclear Core Propulsion Light Treads Treads Light Treads Utility Seismic Detector Device Seismic Detector Storage Small Storage Unit Weapon Small Laser Energy Gun Small Laser Ballistic Gun Light Assault Rifle Launcher Grenade Launcher Build | -11 -10 -10 ------- Run | Yrd Mat Min Slots Evolved . | . . . Power . | . . . Propulsion . | . . . Utility . | . . . Weapon . | . . . Parts Attached 18 | 7 7 4 Power 4 | 1 2 1 Engine 3 | 1 2 . Core 1 | . . 1 Reactor . | . . . Propulsion 3 | 2 1 . Treads 3 | 2 1 . Leg . | . . . Wheel . | . . . Hover . | . . . Flight . | . . . Utility 5 | 2 3 . Device 1 | 1 . . Storage 4 | 1 3 . Processor . | . . . Hackware . | . . . Protection . | . . . Artifact . | . . . Weapon 6 | 2 1 3 Energy Gun 3 | 1 1 1 Energy Cannon . | . . . Ballistic Gun 2 | 1 . 1 Ballistic Cannon . | . . . Launcher 1 | . . 1 Special Weapon . | . . . Impact Weapon . | . . . Slashing Weapon . | . . . Piercing Weapon . | . . . Special Melee Weapon . | . . . Unidentified Prototypes . | . . . Parts Lost 11 | . 2 9 Power 3 | . 1 2 Propulsion 3 | . . 3 Utility 1 | . . 1 Weapon 4 | . 1 3 Highest Loss Streak 8 | . 2 8 To Critical Strikes . | . . . Average Backups 4 | . 3 7 Power . | . . 1 Propulsion 1 | . 1 1 Utility . | . . 2 Weapon 1 | . 1 2 Tool/Special . | . . . Unused Backups 5 | . . 5 Power 1 | . . 1 Propulsion 1 | . . 1 Utility 2 | . . 2 Weapon 1 | . . 1 Tool/Special . | . . . Average Slot Usage (%) 98 | . 100 94 Engine 10 | . 14 2 Core 2 | . . 11 Treads 27 | . 28 25 Device 13 | . 14 13 Storage 14 | . 14 14 Energy Gun 14 | . 14 15 Ballistic Gun 13 | . 14 11 Peak Build Rating 10 | 7 7 10 Average Rating 7 | 5 6 8 On Entrance 4 | . 7 7 Avg Prop Armor Cover (%) . | . . . Naked Turns . | . . . Heaviest Build 29 | 11 28 29 Greatest Support 40 | 40 40 40 Greatest Overweight (x) 7 | 1 . 7 Average Overweight (x) . | . . . Largest Inventory Capacity 20 | 8 20 15 Average Capacity 10 | 7 9 15 Most Carried 8 | 2 7 8 Average Carried 4 | . 3 7 Final Capacity 15 | 8 15 15 Final Carried 6 | 2 6 5 Class Distribution -------------------- 64% | Mutant 35% | Scavenger-Mutant Dominant Class ---------------- Mutant | -10/Materials Scavenger-Mutant | -10/Mines Resources | -11 -10 -10 ----------- Run | Yrd Mat Min Matter Collected 403 | 239 129 35 Remotely . | . . . Salvage Created 623 | 38 494 91 Parts 47 | 7 33 7 Haulers Intercepted 1 | . 1 . Recyclers Shooed . | . . . Parts Field Recycled . | . . . Retrieved Matter . | . . . Parts Self-Destructed . | . . . Prevented . | . . . Parts Restored . | . . . Kills | -11 -10 -10 ------- Run | Yrd Mat Min Combat Hostiles Destroyed 14 | . 12 2 Guns 14 | . 12 2 Classes Destroyed 5 | 1 4 . Tunneler 2 | 2 . . Hauler 1 | . 1 . Watcher 1 | . 1 . Swarmer 3 | . 3 . Grunt 11 | . 9 2 Best Kill Streak 5 | 1 5 2 Combat Bots Only 3 | . 3 2 Max Kills in Single Turn 2 | 1 2 1 Gunslinging . | . . . Exploded . | . . . Melee . | . . . Uniques/NPCs Destroyed . | . . . Combat | -11 -10 -10 -------- Run | Yrd Mat Min Hostile Shots Fired 90 | . 65 25 Missed 21 | . 15 6 Hits 69 | . 50 19 Projectile 69 | . 50 19 AOE 15 | . . 15 Critical Strikes 1 | . . 1 Damage Taken 1243 | . 583 660 Core 252 | . 88 164 Absorbed by Shields . | . . . Core Remaining (%) 100 | 100 . . Volleys Fired 62 | 4 46 12 Largest 2 | 2 2 2 Hottest 80 | 60 60 80 Shots Fired 119 | 8 91 20 Gun 117 | 8 91 18 Cannon . | . . . Launcher 2 | . . 2 Special . | . . . Kinetic 59 | 4 46 9 Thermal 58 | 4 45 9 Explosive 2 | . . 2 Electromagnetic . | . . . Robot Hit Streak 10 | 2 10 3 Robot Miss Streak 3 | 2 3 1 Penetration Max . | . . . Secondary Targets 2 | . 1 1 Max Gunslinging Chain 1 | . 1 1 Shots Hit Robots 76 | 2 62 12 Core Hits 34 | 3 26 5 Critical Kills 1 | . 1 . Critical Parts Destroyed . | . . . Critical Strikes 1 | . 1 . Destroy 1 | . 1 . Melee Attacks . | . . . Impact . | . . . Slashing . | . . . Piercing . | . . . Sneak Attacks . | . . . Combat Hostiles . | . . . Follow-up Attacks . | . . . Damage Inflicted 792 | 31 628 133 Guns 775 | 31 628 116 Cannons . | . . . Explosions 17 | . . 17 Melee . | . . . Ramming . | . . . Kinetic 333 | . 261 72 Thermal 442 | 31 367 44 Explosive 17 | . . 17 Electromagnetic . | . . . Impact . | . . . Slashing . | . . . Piercing . | . . . Highest Corruption . | . . . Average Corruption . | . . . Corruption Purged . | . . . Corruption Blocked . | . . . Overload Shots . | . . . Overflow Damage . | . . . Projectiles . | . . . Explosions . | . . . Melee . | . . . Knockbacks . | . . . Impact . | . . . Kinetic . | . . . Secondary . | . . . Self-Inflicted Damage 10 | . . 10 Shots 1 | . . 1 Rammed 2 | . 2 . Targets Rammed 2 | . 2 . Kicked . | . . . Crushed . | . . . Highest Temperature 112 | 40 112 104 Average Temperature 36 | 22 34 57 Received Heat Transfer 408 | . 315 93 Siege Activations . | . . . Martial Activations . | . . . Shielding Activations . | . . . Robots Disrupted . | . . . Combat Hostiles . | . . . Robots Corrupted . | . . . Combat Hostiles . | . . . Parts Fried . | . . . Impact Corruptions . | . . . Robots Melted . | . . . Combat Hostiles . | . . . Parts Melted 1 | . 1 . Heat Transferred 950 | 75 775 100 Parts Sabotaged . | . . . Parts Stolen . | . . . Parts Stripped . | . . . Power Chain Reactions . | . . . Alert | -11 -10 -10 ------- Run | Yrd Mat Min Maximum Alert Level . | . . . Low Security (%) 100 | 100 100 100 Level 1 . | . . . Level 2 . | . . . Level 3 . | . . . Level 4 . | . . . Level 5 . | . . . High Security . | . . . Max Security . | . . . Peak Influence 124 | 5 124 40 Initial . | . . . Average 39 | . 57 4 Influence Increases 430 | 10 368 52 Destroy 0b10 Robot/C 280 | . 240 40 Destroy 0b10 Robot/NC 20 | 10 10 . Destroy Leader 64 | . 54 10 Successful Hack 4 | . 4 . Destroy Structure 2 | . . 2 Partial Spotted 15 | . 15 . Lose Combat Pursuer 45 | . 45 . Influence Decreases 428 | 10 368 50 Time Decay 398 | 10 348 40 Lost Part 30 | . 20 10 Squads Dispatched 3 | . 3 . Investigation 1 | . 1 . Extermination . | . . . Reinforcement 2 | . 2 . Assault . | . . . Garrison . | . . . Intercept . | . . . Searches Triggered . | . . . Construction Impeded . | . . . Haulers Reinforced . | . . . Active Scanning Responses . | . . . Cargo Convoy Interrupts . | . . . Stealth | -11 -10 -10 --------- Run | Yrd Mat Min Distress Signals 6 | . 5 1 Communications Jammed . | . . . Distress Signals . | . . . Times Spotted 24 | . 21 3 Peak Tracking Total 5 | . 5 1 Tactical Retreats 2 | . 2 . Traps | -11 -10 -10 ------- Run | Yrd Mat Min Traps Triggered 1 | . 1 . Indirectly . | . . . Trap Hack Attempts . | . . . Triggered . | . . . Disarmed . | . . . Reprogrammed . | . . . Reused . | . . . Traps Extracted . | . . . Installed . | . . . Triggered . | . . . Machines | -11 -10 -10 ---------- Run | Yrd Mat Min Machines Disabled . | . . . Max in Single Turn . | . . . Machines Repaired . | . . . Machines Dismantled . | . . . Machines Sabotaged . | . . . Overloaded Fab Kills . | . . . Hacking | -11 -10 -10 --------- Run | Yrd Mat Min Machines Accessed 3 | . 3 . Terminals 2 | . 2 . Fabricators . | . . . Repair Stations . | . . . Recycling Units 1 | . 1 . Scanalyzers . | . . . Garrison Access . | . . . Total Hacks 9 | . 9 . Successful 3 | . 3 . Failed 6 | . 6 . Catastrophic 2 | . 2 . Database Lockouts . | . . . Manual 4 | . 4 . Terminals 6 | . 6 . Fabricators . | . . . Repair Stations . | . . . Recycling Units 3 | . 3 . Scanalyzers . | . . . Garrison Access . | . . . Terminal Hacks 2 | . 2 . Robot Analysis 1 | . 1 . Locate Traps 1 | . 1 . Fabricator Hacks . | . . . Repair Station Hacks . | . . . Recycling Unit Hacks 1 | . 1 . Report Inventory 1 | . 1 . Scanalyzer . | . . . Garrison Access Hacks . | . . . Unauthorized Hacks . | . . . Terminals . | . . . Fabricators . | . . . Repair Stations . | . . . Recycling Units . | . . . Scanalyzers . | . . . Garrison Access . | . . . Data Cores Recovered . | . . . Used . | . . . Hacking Detections 3 | . 3 . Full Trace Events . | . . . Feedback Events . | . . . Feedback Blocked . | . . . Robot Schematics Acquired . | . . . Robots Built . | . . . Authchips . | . . . Time . | . . . Total Robot Build Rating . | . . . Part Schematics Acquired . | . . . Parts Built . | . . . Authchips . | . . . Time . | . . . Total Part Build Rating . | . . . Part Studies Acquired . | . . . Parts Repaired . | . . . Time . | . . . Parts Recycled . | . . . Recycled Matter . | . . . Retrieved Matter . | . . . Retrieved Components . | . . . Parts Scanalyzed . | . . . Part Schematics Acquired . | . . . Parts Damaged . | . . . Bothacking | -11 -10 -10 ------------ Run | Yrd Mat Min Used RIF Installer . | . . . Robots Hacked . | . . . Non-combat . | . . . Combat . | . . . Robot Hacks Applied . | . . . Relay Couplers Released . | . . . Fabnet Peak Effective % . | . . . Robots Rewired . | . . . Allies Hacked . | . . . Hacks Repelled . | . . . Allies | -11 -10 -10 -------- Run | Yrd Mat Min Total Allies . | . . . Largest Group . | . . . Highest-Rated Group . | . . . Highest-Rated Ally . | . . . Total Orders . | . . . Ally Attacks . | . . . Total Damage . | . . . Kills . | . . . Allies Corrupted . | . . . Allies Melted . | . . . Intel | -11 -10 -10 ------- Run | Yrd Mat Min Active Infowar (turns) 1278 | 85 889 304 Seismic 1278 | 85 889 304 Robot Analysis Total 1 | . 1 . Derelict Logs Recovered . | . . . Drone Launches . | . . . Drone Recoveries . | . . . Exploration | -11 -10 -10 ------------- Run | Yrd Mat Min Turns Passed 1344 | 129 889 326 Spaces Moved 652 | 69 411 172 Core 8 | 5 . 3 Treads 644 | 64 411 169 Legs . | . . . Wheels . | . . . Hover . | . . . Flight . | . . . Fastest Speed 50 | 50 160 160 Average Speed 160 | 154 160 165 Slowest Speed 400 | 160 160 400 Overloaded Moves . | . . . Propulsion Burnouts . | . . . Robots Hopped . | . . . Potential Cave-ins . | . . . Cave-ins Triggered . | . . . Exploration Rate (%) 32 | 4 54 38 Regions Visited 2 Branch Regions 1 Pre-discovered Areas . | . . . Known Exits Taken . | . . . Unknown Exits Taken 2 | 1 1 . Scrap Searched 1 | . . 1 Spaces Dug . | . . . Terrain Destroyed 2 | . . 2 Melee . | . . . Projectile . | . . . AOE 2 | . . 2 Terrain Rammed . | . . . Walls Destroyed . | . . . Machines Disabled . | . . . Actions | -11 -10 -10 --------- Run | Yrd Mat Min Total 834 | 81 558 195 Wait 87 | . 85 2 Move 650 | 68 410 172 Hop . | . . . Pick Up 8 | 2 4 2 Fast Attach 8 | 7 . 1 Attach 5 | . 2 3 Detach . | . . . Swap 8 | . 6 2 Drop 4 | . 3 1 Fire 62 | 4 46 12 Melee . | . . . Ram . | . . . Kick . | . . . Crush 2 | . 2 . Escape Stasis . | . . . Rewire . | . . . Trap . | . . . Miscellaneous . | . . . Route ------- -11/Scrapyard -10/Materials (discovered 2 exits: [*Mat] / [*Min]) -10/Mines History --------- Turn | Location | Event 19 | -11/Scrapyard | Discovered new exit (range 15) 130 | -11/Scrapyard | Entered Materials 302 | -10/Materials | Build established: Mutant 642 | -10/Materials | Discovered new exit (range 4) 800 | -10/Materials | Discovered new exit (range 7) 1019 | -10/Materials | Entered Mines 1140 | -10/Mines | Build established: Scavenger-Mutant 1149 | -10/Mines | Assembled infested the area 1154 | -10/Mines | Assisted by a Guerilla fighting off Assembled 1316 | -10/Mines | Core integrity fell below 50% 1345 | -10/Mines | Destroyed by D-53 Grenadier with Mini Grenade Launcher Last Messages --------------- group of Assembled to figure out where they're coming from, and they're closing on this area, come on!" 01215_ A derelict is hurriedly installing traps. 01217_ DC-YJE(g): "Hehe, this'll put a wrench in their mining defense operations..." 01217_ DC-YJE(g) slips into the shadows. 01246_ T-07 Excavator is excavating. 01300_ Lgt. Nuclear Core destroyed. 01310_ Lgt. Treads destroyed. 01311_ The unstable cave ceiling collapses. 01323_ Sml. Laser destroyed. 01323_ Lgt. Treads destroyed. 01323_ Seismic Detector destroyed. 01324_ The unstable cave ceiling collapses. 01327_ Ion Engine destroyed. 01327_ Lgt. Treads destroyed. 01329_ The unstable cave ceiling collapses. 01340_ Assault Rifle destroyed. 01343_ The unstable cave ceiling collapses. Map ----- +----------------------------------------------------+ | ???????????????????????????????????? | | ???????????????????????????????????? | | ???????????????????????????????????? | | ???????????????????????????????????? | | ???????????????????????????????????? | | ?????????????????????????????#####?? | | ?????????????????????????????? #?? | | ??????????????????????????????# #?? | | ??????????????????????????????# #?? | | ???????????????####???????????# #?? | | ??????????????## ####????????# #?? | | ?????????????## ###??????# #?? | | ????????????## ######## #?? | | ??####?????## #?? | | ? ## #?? | | ? $ #### ####?? | | ???# ?# ##?# #????? | | ???# ?## ### #????? | | ??? ??## ## #????? | | ???# ???##### #????? | | ???# ###????## ###????? | | ??## ##????# # d ##?????? | | ?## ##?##### #?????? | | ?# ### ### # #?????? | | ?# ## # #?????? | | ## #### @ ##????? | | ##?### # #????? | | """ ###?# #???? | | ###### """ ### #??? | | ?????## """ ## # ##??? | | ??????### ## #??? | | ????????#### ### ##??? | | ???????????## ##?### ##???? | | ???????????## ##????# ###????? | | ??????????## ##????# ###??????? | | ##????????# ###### #????????? | | ###??????# #????????? | | ###????# #????????? | | ##??## ######????????? | | #### #?????????????? | | ### ##?????????????? | | ##?## ###??????????????? | | ????### #????????????????? | | ??????###### #????????????????? | | ????######## ## #????????????????? | | ????# |%[ ## #????????????????? | | ????# ########## #????????????????? | | ##??# #????????# #????????????????? | | #??# #????????# #????????????????? | | #??# #????????# ????????????????? | +----------------------------------------------------+ Best States ------------- Heat Dissipation 25 Energy Generation 14 Energy Capacity 250 Matter Stores 300 Matter Capacity 300 Sight Range 16 Terrain Scan Density 10 Evasion (%) 40 Recoil Reduction 2 Item Schematics ----------------- None Robot Schematics ------------------ None Fabricated ------------ Nothing Repaired ---------- Nothing Studied --------- None Alien Tech Used ----------------- None Achievements -------------- Ghost 'Em Challenges ------------ None Game ------ Seed BiometalSubatomicPurifier Manual? 0 Play Time 00:12:41 Cumulative 14.9 hours Start 2026.09.16 @ 21:15:17 End 2026.09.16 @ 21:25:23 Sessions 1 Manual Loads 0 Difficulty Rogue Special Mode None Game No. 16 Rogue 1 Adventurer 15 Explorer 0 Win Type - Total 0 Types 0/0/0/0/0/0/0/0/0/0 Lore% 9 Gallery% 12 Achievement% 14 Wizard Run 0 Options --------- Layout 2 ASCII 0 Keyboard 0 Movement Mouse Keybinds 0 Fullscreen 1 Font 24/Smallcaps Map View 50x44 Zoom Use 0% Tactical HUD 1 Map Filters NONE Filters NONE Steam 1 RUN: 610d5877-776e-4f2e-b886-a6f7f510a2d0